Cogmind - Beta 14 @@@ ROGUE MODE // 2024.09.11 @ 17:59:16 Player: Dull Result: Destroyed by G-50 Soldier with Heavy Laser Performance ------------- Evolutions (1) 500 Regions Visited (6) 1200 Robots Destroyed (35) 175 Value Destroyed (722) 722 Prototype IDs (6) 120 Alien Tech Used (0) 0 Bonus (655) 655 TOTAL SCORE: 3372 Bonus ------- Follower Combat Kills 55 Met Imprinter 300 Was Imprinted 300 Cogmind --------- Core Integrity 0/400 Matter 300/300 Energy 99/100 System Corruption 0% Temperature Cool (9) Movement Core (50) Location -6/Proximity Caves Parts ------- > --- POWER (1) -------- (None) > --- PROPULSION (3) --- (None) > --- UTILITY (3) ------ Hacking Suite > --- WEAPON (2) ------- (None) > --- INVENTORY (5) ---- Improved Ion Engine Authchip [R/Combat] Authchip [Propulsion] Authchip [Processor] Authchip [Processor] Peak State ------------ > --- POWER ------------ Improved Ion Engine > --- PROPULSION ------- Light Treads Light Treads Light Treads > --- UTILITY ---------- Salvage Targeting Computer Hardened Light Armor Plating Hacking Suite > --- WEAPON ----------- Rocket Launcher Makeshift Axe > --- INVENTORY -------- Ion Engine Light Nuclear Core KE Penetrator Rocket Launcher Datajack [Rating: 19] Favorites ----------- Power Improved Ion Engine Engine Improved Ion Engine Propulsion Light Treads Treads Light Treads Leg Aluminum Leg Flight Unit Flight Unit Utility Hacking Suite Device Heat Sink Storage Small Storage Unit Processor Salvage Targeting Computer Hackware Hacking Suite Protection Hardened Light Armor Plating Weapon Rocket Launcher Energy Gun Medium Laser Ballistic Gun Light Assault Rifle Launcher Rocket Launcher Special Weapon Mining Laser Slashing Weapon Makeshift Axe Special Melee Weapon Datajack Build | -11 -10 -10 -9 -9 -7 -6 ------- Run | Yrd Mat Min Mat Min Zio Pro Slots Evolved 2 | . . . 2 . . . Power . | . . . . . . . Propulsion 1 | . . . 1 . . . Utility 1 | . . . 1 . . . Weapon . | . . . . . . . Parts Attached 48 | 2 27 3 3 10 3 . Power 6 | . 4 1 . 1 . . Engine 6 | . 4 1 . 1 . . Core . | . . . . . . . Reactor . | . . . . . . . Propulsion 17 | . 11 2 1 2 1 . Treads 5 | . 2 . . 2 1 . Leg 4 | . 4 . . . . . Wheel . | . . . . . . . Hover . | . . . . . . . Flight 8 | . 5 2 1 . . . Utility 10 | 1 5 . 1 3 . . Device 4 | 1 2 . 1 . . . Storage . | . . . . . . . Processor 1 | . . . . 1 . . Hackware 2 | . 2 . . . . . Protection 3 | . 1 . . 2 . . Artifact . | . . . . . . . Weapon 15 | 1 7 . 1 4 2 . Energy Gun 4 | . 2 . . 2 . . Energy Cannon . | . . . . . . . Ballistic Gun 3 | 1 2 . . . . . Ballistic Cannon . | . . . . . . . Launcher 3 | . . . 1 2 . . Special Weapon 2 | . 2 . . . . . Impact Weapon . | . . . . . . . Slashing Weapon 1 | . . . . . 1 . Piercing Weapon . | . . . . . . . Special Melee Weapon 2 | . 1 . . . 1 . Unidentified Prototypes . | . . . . . . . Parts Lost 9 | . 1 6 2 . . . Power 1 | . . . 1 . . . Propulsion 4 | . . 3 1 . . . Utility 2 | . 1 1 . . . . Weapon 2 | . . 2 . . . . Highest Loss Streak 6 | . 1 6 2 . . . To Critical Strikes . | . . . . . . . Average Slot Usage (%) 92 | . 94 92 45 83 99 85 Engine 11 | . 14 13 10 9 11 9 Treads 22 | . 19 . . 21 32 27 Leg 1 | . 3 . . . . . Flight 3 | . 4 26 10 . . . Device 1 | . 5 . 3 . . . Storage 3 | . 11 . . . . . Processor 6 | . . . . 9 11 9 Hackware 9 | . 2 27 11 11 11 11 Protection 7 | . 3 . . 10 11 9 Energy Gun 3 | . 9 . . 5 . . Ballistic Gun 4 | . 15 . . . . . Launcher 5 | . . . 10 16 8 . Special Weapon 1 | . . 12 . . . . Slashing Weapon 4 | . . . . . 8 9 Special Melee Weapon 4 | . 2 12 . . 4 9 Peak Build Rating 19 | 9 11 12 14 15 19 18 Average Rating 13 | 6 7 11 9 13 18 15 On Entrance 10 | 6 9 11 6 5 15 18 Naked Turns . | . . . . . . . Heaviest Build 20 | 14 16 7 8 20 20 16 Greatest Support 60 | 20 40 8 4 40 60 60 Greatest Overweight (x) 2 | . 2 1 1 1 . . Average Overweight (x) . | . . . . . . . Largest Inventory Capacity 8 | 8 8 5 5 5 5 5 Average Capacity 5 | 8 7 5 5 5 5 5 Most Carried 8 | 7 8 5 5 5 5 5 Average Carried 5 | 6 7 4 4 4 4 4 Final Capacity 8 | 8 5 5 5 5 5 5 Final Carried 7 | 7 5 3 5 5 5 5 Class Distribution -------------------- 62% | Scavenger-Mutant 29% | Mutant 8% | Hacker-Mutant Dominant Class ---------------- Mutant | -10/Materials Hacker-Mutant | -10/Mines Mutant | -9/Materials Scavenger-Mutant | -9/Mines Scavenger-Mutant | -7/Zion Scavenger-Mutant | -6/Proximity Caves Resources | -11 -10 -10 -9 -9 -7 -6 ----------- Run | Yrd Mat Min Mat Min Zio Pro Matter Collected 878 | 223 366 63 . 177 39 10 Remotely . | . . . . . . . Salvage Created 1047 | 106 775 . . 166 . . Parts 74 | 7 55 . . 12 . . Haulers Intercepted 1 | . 1 . . . . . Recyclers Shooed 3 | . 2 . . 1 . . Parts Field Recycled . | . . . . . . . Retrieved Matter . | . . . . . . . Parts Self-Destructed . | . . . . . . . Prevented . | . . . . . . . Kills | -11 -10 -10 -9 -9 -7 -6 ------- Run | Yrd Mat Min Mat Min Zio Pro Combat Hostiles Destroyed 21 | . 16 . . 5 . . Guns 16 | . 16 . . . . . AOE 5 | . . . . 5 . . Classes Destroyed 8 | 2 6 . . . . . Worker 4 | . 1 . . 3 . . Tunneler 3 | 2 . . . 1 . . Hauler 1 | . 1 . . . . . Recycler 3 | 1 2 . . . . . Operator 2 | . 2 . . . . . Watcher 1 | . 1 . . . . . Swarmer 6 | . 6 . . . . . Grunt 15 | . 10 . . 5 . . Best Kill Streak 7 | 2 5 . . 7 . . Combat Bots Only 5 | . 5 . . 3 . . Max Kills in Single Turn 5 | 1 1 . . 5 . . Gunslinging . | . . . . . . . Exploded 2 | . . . . 2 . . Melee . | . . . . . . . Uniques/NPCs Destroyed . | . . . . . . . Combat | -11 -10 -10 -9 -9 -7 -6 -------- Run | Yrd Mat Min Mat Min Zio Pro Hostile Shots Fired 188 | . 94 28 32 3 . 31 Missed 61 | . 26 10 13 2 . 10 Damage Taken 1573 | . 665 279 217 11 . 401 Core 576 | . 72 102 123 11 . 268 Absorbed by Shields . | . . . . . . . Regen/Repaired (Parts) 4 | . 4 . . . . . Core Remaining (%) 65 | 100 . 30 . . . . Volleys Fired 93 | 9 76 5 . 3 . . Largest 2 | 2 2 1 . 2 . . Hottest 100 | 90 100 100 . 66 . . Shots Fired 175 | 18 146 5 . 6 . . Gun 162 | 18 144 . . . . . Cannon . | . . . . . . . Launcher 6 | . . . . 6 . . Special 7 | . 2 5 . . . . Kinetic 101 | 3 98 . . . . . Thermal 58 | 9 44 5 . . . . Explosive 6 | . . . . 6 . . Electromagnetic 10 | 6 4 . . . . . Robot Hit Streak 13 | 4 13 . . 4 . . Robot Miss Streak 5 | 2 5 . . 1 . . Penetration Max . | . . . . . . . Secondary Targets 2 | . 2 . . . . . Max Gunslinging Chain 1 | . 1 . . . . . Shots Hit Robots 114 | 11 95 2 . 4 . 2 Core Hits 58 | 4 41 . . 13 . . Critical Kills . | . . . . . . . Critical Parts Destroyed . | . . . . . . . Critical Strikes 2 | . 2 . . . . . Burn 2 | . 2 . . . . . Melee Attacks 12 | . 4 5 . . 1 2 Impact . | . . . . . . . Slashing 1 | . . . . . 1 . Piercing . | . . . . . . . Sneak Attacks 3 | . 2 1 . . . . Combat Hostiles . | . . . . . . . Follow-up Attacks . | . . . . . . . Damage Inflicted 1789 | 162 964 . . 663 . . Guns 1074 | 134 940 . . . . . Cannons . | . . . . . . . Explosions 691 | 28 . . . 663 . . Melee . | . . . . . . . Ramming . | . . . . . . . Kinetic 617 | 6 611 . . . . . Thermal 426 | 104 322 . . . . . Explosive 663 | . . . . 663 . . Electromagnetic 83 | 52 31 . . . . . Impact . | . . . . . . . Slashing . | . . . . . . . Piercing . | . . . . . . . Highest Corruption 6 | . . 6 . . . . Average Corruption 6 | . . 6 . . . . Corruption Purged . | . . . . . . . Corruption Blocked . | . . . . . . . Effects 1 | . . 1 . . . . Message Errors 1 | . . 1 . . . . Overload Shots . | . . . . . . . Overflow Damage 9 | . . . . 9 . . Projectiles . | . . . . . . . Explosions 9 | . . . . 9 . . Melee . | . . . . . . . Knockbacks . | . . . . . . . Impact . | . . . . . . . Kinetic . | . . . . . . . Secondary . | . . . . . . . Self-Inflicted Damage . | . . . . . . . Shots . | . . . . . . . Rammed . | . . . . . . . Targets Rammed . | . . . . . . . Kicked . | . . . . . . . Crushed . | . . . . . . . Highest Temperature 288 | 180 288 169 . 15 . 4 Average Temperature 94 | 72 106 79 . 10 . 4 Received Heat Transfer 519 | . 228 114 36 6 . 135 Siege Activations . | . . . . . . . Robots Corrupted . | . . . . . . . Combat Hostiles . | . . . . . . . Parts Fried . | . . . . . . . Impact Corruptions . | . . . . . . . Robots Melted . | . . . . . . . Combat Hostiles . | . . . . . . . Parts Melted 2 | . 2 . . . . . Heat Transferred 1358 | 272 1086 . . . . . Parts Sabotaged . | . . . . . . . Parts Stolen . | . . . . . . . Parts Stripped . | . . . . . . . Power Chain Reactions 1 | 1 . . . . . . Alert | -11 -10 -10 -9 -9 -7 -6 ------- Run | Yrd Mat Min Mat Min Zio Pro Peak Influence 302 | 15 302 190 125 255 . . Initial 105 | . 9 105 70 44 . . Average 104 | 7 108 153 77 91 . . Maximum Alert Level 1 | . 1 . . 1 . . Low Security (%) 91 | 100 86 100 100 91 . . Level 1 8 | . 13 . . 8 . . Level 2 . | . . . . . . . Level 3 . | . . . . . . . Level 4 . | . . . . . . . Level 5 . | . . . . . . . High Security . | . . . . . . . Max Security . | . . . . . . . Squads Dispatched 8 | . 6 . 1 . . 1 Investigation 5 | . 3 . 1 . . 1 Extermination . | . . . . . . . Reinforcement 3 | . 3 . . . . . Assault . | . . . . . . . Garrison . | . . . . . . . Intercept . | . . . . . . . Searches Triggered . | . . . . . . . Construction Impeded . | . . . . . . . Haulers Reinforced . | . . . . . . . Active Scanning Responses . | . . . . . . . Cargo Convoy Interrupts . | . . . . . . . Stealth | -11 -10 -10 -9 -9 -7 -6 --------- Run | Yrd Mat Min Mat Min Zio Pro Distress Signals 3 | . 2 . 1 . . . Communications Jammed . | . . . . . . . Distress Signals . | . . . . . . . Times Spotted 77 | . 29 24 13 4 . 7 Peak Tracking Total 14 | . 4 14 14 3 . 7 Tactical Retreats 8 | . 2 5 1 . . . Traps | -11 -10 -10 -9 -9 -7 -6 ------- Run | Yrd Mat Min Mat Min Zio Pro Traps Triggered 3 | . 2 . 1 . . . Indirectly . | . . . . . . . Trap Hack Attempts . | . . . . . . . Triggered . | . . . . . . . Disarmed . | . . . . . . . Reprogrammed . | . . . . . . . Reused . | . . . . . . . Traps Extracted . | . . . . . . . Installed . | . . . . . . . Triggered 1 | . . 1 . . . . Machines | -11 -10 -10 -9 -9 -7 -6 ---------- Run | Yrd Mat Min Mat Min Zio Pro Machines Disabled 3 | . . . . 2 . 1 Max in Single Turn 2 | . . . . 2 . . Machines Repaired . | . . . . . . . Machines Dismantled . | . . . . . . . Machines Sabotaged . | . . . . . . . Overloaded Fab Kills . | . . . . . . . Hacking | -11 -10 -10 -9 -9 -7 -6 --------- Run | Yrd Mat Min Mat Min Zio Pro Machines Accessed 11 | . 5 1 3 1 . 1 Terminals 8 | . 4 . 2 1 . 1 Fabricators . | . . . . . . . Repair Stations 1 | . 1 . . . . . Recycling Units . | . . . . . . . Scanalyzers 1 | . . . 1 . . . Garrison Access . | . . . . . . . Total Hacks 27 | . 12 1 8 3 . 3 Successful 14 | . 4 1 4 2 . 3 Failed 13 | . 8 . 4 1 . . Catastrophic 1 | . 1 . . . . . Database Lockouts . | . . . . . . . Manual 10 | . 5 . 4 1 . . Terminals 21 | . 10 . 5 3 . 3 Fabricators . | . . . . . . . Repair Stations 2 | . 2 . . . . . Recycling Units . | . . . . . . . Scanalyzers 3 | . . . 3 . . . Garrison Access . | . . . . . . . Terminal Hacks 9 | . 2 1 1 2 . 3 Record 3 | . . . . . . 3 Prototype ID Bank 2 | . 1 . 1 . . . Open Door 1 | . . 1 . . . . Level Access Points 1 | . . . . 1 . . Branch Access Points 1 | . . . . 1 . . Unreport Threat 1 | . 1 . . . . . Fabricator Hacks . | . . . . . . . Repair Station Hacks 2 | . 2 . . . . . Scan Component 1 | . 1 . . . . . Repair 1 | . 1 . . . . . Recycling Unit Hacks . | . . . . . . . Scanalyzer 3 | . . . 3 . . . Insert Component 2 | . . . 2 . . . Analyze 1 | . . . 1 . . . Garrison Access Hacks . | . . . . . . . Unauthorized Hacks . | . . . . . . . Terminals . | . . . . . . . Fabricators . | . . . . . . . Repair Stations . | . . . . . . . Recycling Units . | . . . . . . . Scanalyzers . | . . . . . . . Garrison Access . | . . . . . . . Data Cores Recovered . | . . . . . . . Used . | . . . . . . . Hacking Detections 8 | . 4 . 2 1 . 1 Full Trace Events 4 | . 1 . 2 . . 1 Feedback Events . | . . . . . . . Feedback Blocked . | . . . . . . . Robot Schematics Acquired 3 | . . . . . 3 . Robots Built . | . . . . . . . Authchips . | . . . . . . . Time . | . . . . . . . Total Robot Build Rating . | . . . . . . . Part Schematics Acquired 16 | . . . 1 . 15 . Parts Built . | . . . . . . . Authchips . | . . . . . . . Time . | . . . . . . . Total Part Build Rating . | . . . . . . . Parts Repaired 1 | . 1 . . . . . Time 26 | . 26 . . . . . Parts Recycled . | . . . . . . . Recycled Matter . | . . . . . . . Retrieved Matter . | . . . . . . . Retrieved Components . | . . . . . . . Parts Scanalyzed 1 | . . . 1 . . . Part Schematics Acquired 1 | . . . 1 . . . Parts Damaged . | . . . . . . . Bothacking | -11 -10 -10 -9 -9 -7 -6 ------------ Run | Yrd Mat Min Mat Min Zio Pro Used RIF Installer . | . . . . . . . Robots Hacked 4 | . 2 2 . . . . Non-combat 3 | . 2 1 . . . . Combat 1 | . . 1 . . . . Robot Hacks Applied 4 | . 2 2 . . . . parse_system 2 | . 1 1 . . . . no_distress 1 | . . 1 . . . . check_alert 1 | . 1 . . . . . Relay Couplers Released . | . . . . . . . Fabnet Peak Effective % . | . . . . . . . Robots Rewired . | . . . . . . . Allies Hacked . | . . . . . . . Hacks Repelled . | . . . . . . . Allies | -11 -10 -10 -9 -9 -7 -6 -------- Run | Yrd Mat Min Mat Min Zio Pro Total Allies 7 | . . 3 . . 4 . Largest Group 4 | . . 3 . . 4 4 Highest-Rated Group 149 | . . 40 . . 149 149 Highest-Rated Ally 38 | . . 16 . . 38 38 Total Orders 1 | . . . 1 . . . EXPLORE 1 | . . . 1 . . . Ally Attacks 29 | . . 18 6 . . 5 Total Damage 484 | . . 214 . . . 270 Kills 2 | . . 1 . . . 1 Allies Corrupted . | . . . . . . . Allies Melted . | . . . . . . . Intel | -11 -10 -10 -9 -9 -7 -6 ------- Run | Yrd Mat Min Mat Min Zio Pro Robot Analysis Total . | . . . . . . . Derelict Logs Recovered 5 | . . 2 . 2 1 . Drone Launches 3 | . . . 3 . . . Drone Recoveries 3 | . . . 3 . . . Exploration | -11 -10 -10 -9 -9 -7 -6 ------------- Run | Yrd Mat Min Mat Min Zio Pro Turns Passed 3368 | 87 949 279 137 347 1442 127 Spaces Moved 2403 | 48 580 426 173 191 885 100 Core 60 | . . . 13 8 . 39 Treads 1394 | . 265 . . 183 885 61 Legs 103 | 48 55 . . . . . Wheels . | . . . . . . . Hover . | . . . . . . . Flight 846 | . 260 426 160 . . . Fastest Speed 37 | 120 37 37 40 50 160 50 Average Speed 113 | 120 101 37 45 155 160 117 Slowest Speed 200 | 120 200 120 120 160 160 160 Overloaded Moves . | . . . . . . . Propulsion Burnouts . | . . . . . . . Robots Hopped 11 | . 3 5 3 . . . Cave-ins Triggered . | . . . . . . . Exploration Rate (%) 49 | 4 77 81 34 48 84 18 Regions Visited 6 Branch Regions 4 Pre-discovered Areas 1 | . . 1 . . . . Known Exits Taken . | . . . . . . . Unknown Exits Taken 6 | 1 1 1 1 1 1 . Scrap Searched 6 | . . . . 1 3 2 Spaces Dug 6 | . 1 5 . . . . Terrain Destroyed 50 | 6 1 5 . 38 . . Melee . | . . . . . . . Projectile 6 | . 1 5 . . . . AOE 44 | 6 . . . 38 . . Terrain Rammed . | . . . . . . . Walls Destroyed . | . . . . . . . Machines Disabled . | . . . . . . . Actions | -11 -10 -10 -9 -9 -7 -6 --------- Run | Yrd Mat Min Mat Min Zio Pro Total 2871 | 59 801 523 229 234 912 113 Wait 263 | . 91 85 52 23 10 2 Move 2376 | 47 574 415 166 190 884 100 Hop 10 | . 2 5 3 . . . Pick Up 20 | 1 5 2 2 3 7 . Fast Attach 16 | 1 7 1 1 6 . . Attach 6 | . 1 2 2 . 1 . Detach 2 | . . . 1 . . 1 Swap 26 | 1 19 . . 4 2 . Drop 46 | . 22 3 2 5 6 8 Fire 93 | 9 76 5 . 3 . . Melee 12 | . 4 5 . . 1 2 Ram . | . . . . . . . Kick . | . . . . . . . Crush . | . . . . . . . Escape Stasis . | . . . . . . . Rewire 1 | . . . . . 1 . Trap . | . . . . . . . Miscellaneous . | . . . . . . . Route ------- -11/Scrapyard -10/Materials (discovered 2 exits: *Mat / *Min) -10/Mines (discovered 2 exits: *Mat x2) -9/Materials -9/Mines (discovered 3 exits: *Mat x2 / [*Zio]) -7/Zion -6/Proximity Caves History --------- Turn | Location | Event 1 | -11/Scrapyard | Discovered new exit (range 3) 88 | -11/Scrapyard | Entered Materials 314 | -10/Materials | Build established: Mutant 581 | -10/Materials | Discovered new exit (range 15) 912 | -10/Materials | Repaired Flight Unit 1016 | -10/Materials | Discovered new exit (range 16) 1037 | -10/Materials | Entered Mines 1041 | -10/Mines | Found the Drone Emporium 1043 | -10/Mines | Found Prototype Device 1050 | -10/Mines | Discovered new exit (range 12) 1053 | -10/Mines | Assisted by bots powering up and referring to "LRC-V3" 1180 | -10/Mines | Discovered new exit (range 6) 1235 | -10/Mines | Assembled infested the area 1240 | -10/Mines | Assisted by a Guerilla fighting off Assembled 1241 | -10/Mines | Learned location of Recycling (-8) 1251 | -10/Mines | Learned Materials stockpile data 1284 | -10/Mines | Core integrity fell below 50% 1316 | -10/Mines | Entered Materials 1316 | -9/Materials | Evolved 2 slots: Propulsion x1, Utility x1 1327 | -9/Materials | Identified Thief Drone Bay 1330 | -9/Materials | Lost 6 parts (3n1u2w) 1446 | -9/Materials | Discovered new exit (range 13) 1453 | -9/Materials | Entered Mines 1455 | -9/Mines | Joined a pair of Derelicts in attacking an 0b10 outpost 1489 | -9/Mines | Met a Derelict bent on vengeance 1535 | -9/Mines | Learned Materials stockpile data 1611 | -9/Mines | Received a Rocket Launcher from a helpful Derelict 1637 | -9/Mines | Discovered new exit (range 11) 1691 | -9/Mines | Identified exit to Materials 1753 | -9/Mines | Build established: Scavenger-Mutant 1770 | -9/Mines | Learned location of 1 exit from Lower Caves 1783 | -9/Mines | A Derelict revealed a hidden shortcut to a safe place 1800 | -9/Mines | Entered Zion 1885 | -7/Zion | Learned Factory emergency access door positions 1915 | -7/Zion | Discovered new exit (range 16) 2781 | -7/Zion | Met Imprinter 2896 | -7/Zion | Imprinted 2899 | -7/Zion | Declared Zion's savior 3242 | -7/Zion | Entered Proximity Caves 3242 | -6/Proximity Caves | Accompanied by 4 allies 3331 | -6/Proximity Caves | Attracted the attention of an 0b10 base 3350 | -6/Proximity Caves | Core integrity fell below 50% 3357 | -6/Proximity Caves | Core integrity fell below 20% 3369 | -6/Proximity Caves | Destroyed by G-50 Soldier with Heavy Laser Last Messages --------------- 03347_ Dropped Datajack. 03347_ Dropped Hrd. Light Armor Plating. 03348_ Discarded Salvage Targeting Computer. 03348_ Dropped Imp. Signal Interpreter. 03349_ Dropped Mak. Axe. 03356_ Connecting with Outpost Terminal... 03356_ Current location identified: Proximity Caves >>Query(Status Report 231K) REPELLED LIGHT ASSEMBLED INCURSION. >>Query(Status Report 419A) RECEIVED DETACHMENT. >>Query(Status Report 613W) PATROL ENCOUNTERED WARLORD-AFFILIATED DERELICTS. ELIMINATED. 03356_ ALERT: Suspicious activity at Terminal P001. Dispatching Investigation squad. 03360_ Searching scrap... 03360_ Found Reflective Plating. 03360_ Found ECM Suite. 03360_ Found Adv. Heat Sink. 03360_ Found 58 Matter. Map ----- +----------------------------------------------------+ | ??????????????????????????????????????????????? | | ??????????????????????????????????????????????? | | ??????????????????????????????????????????????? | | ??????????????????????????????????????????????? | | ??????????????????????????????????????????????? | | ??????????????????????????????????????????????? | | ??????????????????????????????????????????????? | | ??????????????????????????????????????????????? | | ??????????????????????????????????????????????? | | ??????????????????????????????????????????????? | | ??????????????????????????????????????????????? | | ??????????????????????????????????????????????? | | ?????????????????????????????????####?????????? | | ????????????????###???###???????## ##?######?? | | ????????????????# #?## ##??????# ## #?? | | ????????????????# ## #?????## #?? | | ?????????????????# #?????# #??? | | ?????????????????# ####### #??? | | ?????????????????# # ! ! #??? | | ?????????????????##### %! #??? | | ????????????????????## ######+#### #????? | | ????????????????????# #""""" ""# #????? | | ?????????????????#### # ""# ##### | | ?????????????????# # T"# | | ?????????????????# /g g ""# | | ?????????????????### @ # # | | ???????????????????## # *= + # | | ????????????????????### #"""|!*= # #???? | | ??????????????##??????# #??"[=%[ # #????? | | ??????????????? ?????? #??"!%|!!!# #????? | | ???????????????# ????#### ####+""#%=# ###### | | ???????????????# ??????# ]! !=!=/ | | ???????????????# #?????## % !=/ ##### | | ???????????????# #?????# ##############????? | | ???????????????# ##???# #?????????????????? | | ????????????????# ##?# #?????????????????? | | ?????????????????# ### ######????????####? | | ??????????????????# #???????# ? | | ???????????????####### ##????## # ## | | ???????????????# ### ### ##??## # | | ??????????###### ###?## #### # | | ?????????## [ ##???# ## # # | | ?????????# * #???# | | ?????????# ## #??## | | ?????????## #???## ### | | ??????????## ## #??## ##?# | | ???????????###?## ##???####??# # | | ???????????????# ## #?????????? | | ???????????????# ### #????????# | | ???????????????## #?## ##????????## ## | +----------------------------------------------------+ Best States ------------- Heat Dissipation 35 Energy Generation 12 Energy Capacity 265 Matter Stores 300 Matter Capacity 300 Sight Range 16 Terrain Scan Range 16 Terrain Scan Density 10 Armor Coverage 150 Weapon Shielding 33 Evasion (%) 62 Recoil Reduction 3 Salvage Targeting 1 Offensive Hacking 20 Authchip Count 4 Item Schematics ----------------- Flight Unit | -9/Materials | Scanalyzed Armor Integrity Analyzer | -7/Zion | Archive Hvy. Machine Gun | -7/Zion | Archive Imp. Reaction Control System | -7/Zion | Archive Great Axe | -7/Zion | Archive Adv. Melee Analysis Suite | -7/Zion | Archive Plasma Cannon | -7/Zion | Archive Lyr. Heavy Armor Plating | -7/Zion | Archive Adv. Cooling System | -7/Zion | Archive Hvy. Laser | -7/Zion | Archive Magnetic Acceleration Cannon | -7/Zion | Archive Core Analyzer | -7/Zion | Archive Phase Cannon | -7/Zion | Archive Transmission Jammer | -7/Zion | Archive Imp. Core Shielding | -7/Zion | Archive Tiamat Missile Launcher | -7/Zion | Archive Robot Schematics ------------------ S-27 Virus | -7/Zion | Archive L-41 Fighter | -7/Zion | Archive K-01 Serf | -7/Zion | Archive Fabricated ------------ Nothing Alien Tech Used ----------------- None Achievements -------------- None Challenges ------------ None Game ------ Seed TowerCooledCompanion Manual? 0 Play Time 00:30:14 Cumulative 54.2 hours Start 2024.09.11 @ 17:28:59 End 2024.09.11 @ 17:59:16 Sessions 1 Manual Loads 0 Difficulty Rogue Special Mode None Game No. 78 Rogue 78 Adventurer 0 Explorer 0 Win Type - Total 0 Types 0/0/0/0/0/0/0/0/0 Lore% 13 Gallery% 47 Achievement% 37 Wizard Run 0 Options --------- Layout 0 ASCII 0 Keyboard 0 Movement Mouse Keybinds 1 Fullscreen 1 Font 18/TerminusBold Map View 76x50 Zoom Use 0% Tactical HUD 1 Map Filters NONE Filters NONE Steam 1 RUN: a8ce6799-41f5-4b62-8c82-5be3f011dc65